[Event "Titled Tuesday Blitz December 20 Early 2022"]
[White "De Firmian, Nick"]
[Black "UnknownMagician"]
[WhiteFideId "2000105"]
[WhiteElo "2460"]
[BlackElo "2635"]
[Result "0-1"]
[Round "03"]
[TimeControl "180+2"]
[Date "2022.12.20"]
[WhiteClock "0:00:07"]
[BlackClock "0:00:15"]

1. Nf3 {[%clk 0:03:00]}  d5 {[%clk 0:02:57]} 2. g3 {[%clk 0:03:01]}  c6 {[%clk 0:02:57]} 3. Bg2 {[%clk 0:03:01]}  Nf6 {[%clk 0:02:58]} 4. O-O {[%clk 0:03:02]}  Bf5 {[%clk 0:02:58]} 5. b3 {[%clk 0:03:02]}  e6 {[%clk 0:02:58]} 6. Bb2 {[%clk 0:03:03]}  Nbd7 {[%clk 0:02:58]} 7. d3 {[%clk 0:03:03]}  h6 {[%clk 0:02:58]} 8. Nbd2 {[%clk 0:03:04]}  Bh7 {[%clk 0:02:58]} 9. Re1 {[%clk 0:03:04]}  Bc5 {[%clk 0:02:56]} 10. a3 {[%clk 0:03:02]}  O-O {[%clk 0:02:55]} 11. b4 {[%clk 0:03:03]}  Bb6 {[%clk 0:02:49]} 12. e3 {[%clk 0:03:03]}  a5 {[%clk 0:02:47]} 13. Qe2 {[%clk 0:02:56]}  axb4 {[%clk 0:02:44]} 14. axb4 {[%clk 0:02:57]}  Qe7 {[%clk 0:02:44]} 15. c3 {[%clk 0:02:52]}  c5 {[%clk 0:02:23]} 16. bxc5 {[%clk 0:02:49]}  Nxc5 {[%clk 0:02:23]} 17. Ne5 {[%clk 0:02:27]}  Nfd7 {[%clk 0:02:10]} 18. Nxd7 {[%clk 0:02:15]}  Qxd7 {[%clk 0:02:11]} 19. e4 {[%clk 0:02:06]}  Na4 {[%clk 0:02:06]} 20. Nf3 {[%clk 0:01:45]}  Qb5 {[%clk 0:01:57]} 21. Rab1 {[%clk 0:01:36]}  dxe4 {[%clk 0:01:53]} 22. dxe4 {[%clk 0:01:17]}  Qxe2 {[%clk 0:01:49]} 23. Rxe2 {[%clk 0:01:18]}  Rfc8 {[%clk 0:01:44]} 24. Ba1 {[%clk 0:01:02]}  Ra7 {[%clk 0:01:21]} 25. Ne1 {[%clk 0:00:47]}  Bd8 {[%clk 0:00:54]} 26. Ra2 {[%clk 0:00:44]}  Rca8 {[%clk 0:00:34]} 27. Rb4 {[%clk 0:00:29]}  Be7 {[%clk 0:00:34]} 28. Rd4 {[%clk 0:00:24]}  Bc5 {[%clk 0:00:28]} 29. Rd7 {[%clk 0:00:20]}  Bg6 {[%clk 0:00:28]} 30. e5 {[%clk 0:00:19]}  Bb1 {[%clk 0:00:19]} 31. Rad2 {[%clk 0:00:13]}  Nb6 {[%clk 0:00:15]} 32. Rd8+ {[%clk 0:00:10]}  Rxd8 {[%clk 0:00:15]} 33. Rxd8+ {[%clk 0:00:11]}  Kh7 {[%clk 0:00:15]} 34. Bb2 {[%clk 0:00:11]}  Ra2 {[%clk 0:00:15]} 35. Rd2 {[%clk 0:00:11]}  Nc4 {[%clk 0:00:15]} 36. Rd1 {[%clk 0:00:09]}  Rxb2 {[%clk 0:00:15]} 37. Bf1 {[%clk 0:00:09]}  Bxf2+ {[%clk 0:00:14]} 38. Kg2 {[%clk 0:00:08]}  Ne3+ {[%clk 0:00:15]} 39. Kf3 {[%clk 0:00:07]}  Nxd1 {[%clk 0:00:15]} 0-1


[Site "https://www.chess.com"]

[Event "Titled Tuesday Blitz December 20 Early 2022"]
[White "DefiantChair"]
[Black "Yildiz, Ayse Emek"]
[BlackFideId "6303528"]
[WhiteElo "2631"]
[BlackElo "1702"]
[Result "0-1"]
[Round "03"]
[TimeControl "180+2"]
[Date "2022.12.20"]
[WhiteClock "0:00:04"]
[BlackClock "0:00:05"]

1. e4 {[%clk 0:02:59]}  e5 {[%clk 0:02:59]} 2. Nf3 {[%clk 0:02:59]}  Nc6 {[%clk 0:02:58]} 3. Bb5 {[%clk 0:02:59]}  a6 {[%clk 0:02:58]} 4. Ba4 {[%clk 0:03:00]}  Nf6 {[%clk 0:02:58]} 5. O-O {[%clk 0:03:00]}  Be7 {[%clk 0:02:58]} 6. Re1 {[%clk 0:03:00]}  b5 {[%clk 0:02:57]} 7. Bb3 {[%clk 0:03:01]}  O-O {[%clk 0:02:57]} 8. c3 {[%clk 0:03:01]}  d5 {[%clk 0:02:57]} 9. exd5 {[%clk 0:03:02]}  Nxd5 {[%clk 0:02:57]} 10. Nxe5 {[%clk 0:03:03]}  Nxe5 {[%clk 0:02:57]} 11. Rxe5 {[%clk 0:03:04]}  c6 {[%clk 0:02:58]} 12. d4 {[%clk 0:03:04]}  Bd6 {[%clk 0:02:57]} 13. Re1 {[%clk 0:03:04]}  Qh4 {[%clk 0:02:55]} 14. g3 {[%clk 0:03:05]}  Qh3 {[%clk 0:02:55]} 15. Re4 {[%clk 0:03:06]}  g5 {[%clk 0:02:54]} 16. Qe2 {[%clk 0:03:06]}  Bf5 {[%clk 0:02:49]} 17. Nd2 {[%clk 0:03:05]}  h6 {[%clk 0:02:46]} 18. f3 {[%clk 0:03:01]}  Bxe4 {[%clk 0:02:37]} 19. fxe4 {[%clk 0:02:59]}  Rae8 {[%clk 0:02:36]} 20. Qf2 {[%clk 0:02:55]}  Nb6 {[%clk 0:02:22]} 21. e5 {[%clk 0:02:55]}  Be7 {[%clk 0:02:20]} 22. Nf1 {[%clk 0:02:48]}  Kg7 {[%clk 0:02:15]} 23. Ne3 {[%clk 0:02:38]}  f5 {[%clk 0:02:15]} 24. Bd1 {[%clk 0:02:10]}  f4 {[%clk 0:01:44]} 25. Bg4 {[%clk 0:02:00]}  fxe3 {[%clk 0:01:44]} 26. Qxf8+ {[%clk 0:01:58]}  Rxf8 {[%clk 0:01:45]} 27. Bxh3 {[%clk 0:01:59]}  e2 {[%clk 0:01:44]} 28. Be3 {[%clk 0:01:54]}  Nc4 {[%clk 0:01:43]} 29. Bf2 {[%clk 0:01:50]}  Nxb2 {[%clk 0:01:43]} 30. Re1 {[%clk 0:01:34]}  Nd1 {[%clk 0:01:34]} 31. Rxe2 {[%clk 0:01:33]}  Nxc3 {[%clk 0:01:34]} 32. Rc2 {[%clk 0:01:28]}  b4 {[%clk 0:01:31]} 33. Bd7 {[%clk 0:01:19]}  Rf3 {[%clk 0:01:09]} 34. Bxc6 {[%clk 0:01:14]}  Rd3 {[%clk 0:01:10]} 35. Kg2 {[%clk 0:01:05]}  a5 {[%clk 0:01:09]} 36. Bd7 {[%clk 0:00:55]}  a4 {[%clk 0:01:03]} 37. Bf5 {[%clk 0:00:54]}  Rd1 {[%clk 0:01:03]} 38. Be6 {[%clk 0:00:36]}  Ra1 {[%clk 0:00:40]} 39. Bc4 {[%clk 0:00:24]}  Rd1 {[%clk 0:00:34]} 40. a3 {[%clk 0:00:20]}  Ne4 {[%clk 0:00:33]} 41. axb4 {[%clk 0:00:17]}  Nxf2 {[%clk 0:00:32]} 42. Kxf2 {[%clk 0:00:17]}  Rxd4 {[%clk 0:00:33]} 43. b5 {[%clk 0:00:17]}  Bc5 {[%clk 0:00:30]} 44. Kg2 {[%clk 0:00:17]}  a3 {[%clk 0:00:30]} 45. Ba2 {[%clk 0:00:16]}  Bb6 {[%clk 0:00:28]} 46. Kf3 {[%clk 0:00:16]}  Rb4 {[%clk 0:00:28]} 47. e6 {[%clk 0:00:16]}  Kf6 {[%clk 0:00:27]} 48. Re2 {[%clk 0:00:15]}  Ke7 {[%clk 0:00:26]} 49. Rd2 {[%clk 0:00:15]}  g4+ {[%clk 0:00:25]} 50. Ke2 {[%clk 0:00:14]}  Rxb5 {[%clk 0:00:23]} 51. Kd3 {[%clk 0:00:12]}  Re5 {[%clk 0:00:14]} 52. Re2 {[%clk 0:00:11]}  Rc5 {[%clk 0:00:09]} 53. Ke4 {[%clk 0:00:10]}  Rc3 {[%clk 0:00:09]} 54. Kf4 {[%clk 0:00:10]}  h5 {[%clk 0:00:08]} 55. Kg5 {[%clk 0:00:10]}  Rc5+ {[%clk 0:00:07]} 56. Kg6 {[%clk 0:00:11]}  Rb5 {[%clk 0:00:08]} 57. Re1 {[%clk 0:00:08]}  Rb2 {[%clk 0:00:08]} 58. Bd5 {[%clk 0:00:09]}  Rxh2 {[%clk 0:00:06]} 59. Ra1 {[%clk 0:00:08]}  Bc5 {[%clk 0:00:06]} 60. Rc1 {[%clk 0:00:08]}  Bd6 {[%clk 0:00:06]} 61. Rb1 {[%clk 0:00:08]}  Bxg3 {[%clk 0:00:06]} 62. Rb7+ {[%clk 0:00:08]}  Kd6 {[%clk 0:00:06]} 63. Rd7+ {[%clk 0:00:07]}  Kc5 {[%clk 0:00:06]} 64. e7 {[%clk 0:00:08]}  Re2 {[%clk 0:00:06]} 65. Kf7 {[%clk 0:00:08]}  Bd6 {[%clk 0:00:07]} 66. e8=Q {[%clk 0:00:06]}  Rxe8 {[%clk 0:00:06]} 67. Kxe8 {[%clk 0:00:06]}  g3 {[%clk 0:00:06]} 68. Ba2 {[%clk 0:00:06]}  h4 {[%clk 0:00:05]} 69. Rh7 {[%clk 0:00:05]}  g2 {[%clk 0:00:04]} 70. Rg7 {[%clk 0:00:05]}  Bg3 {[%clk 0:00:05]} 71. Rg5+ {[%clk 0:00:03]}  Kd4 {[%clk 0:00:05]} 72. Rd5+ {[%clk 0:00:02]}  Kc3 {[%clk 0:00:05]} 73. Rd1 {[%clk 0:00:03]}  h3 {[%clk 0:00:05]} 74. Bd5 {[%clk 0:00:03]}  Kb2 {[%clk 0:00:05]} 75. Rg1 {[%clk 0:00:03]}  Bf2 {[%clk 0:00:05]} 76. Bxg2 {[%clk 0:00:03]}  Bxg1 {[%clk 0:00:04]} 77. Bxh3 {[%clk 0:00:03]}  a2 {[%clk 0:00:05]} 78. Bf5 {[%clk 0:00:04]}  a1=Q {[%clk 0:00:05]} 0-1


[Site "https://www.chess.com"]

[Event "Titled Tuesday Blitz December 20 Early 2022"]
[White "Derybas, Igor"]
[Black "Dela Cruz, Noel"]
[WhiteFideId "41846400"]
[BlackFideId "5207649"]
[WhiteElo "1490"]
[BlackElo "2241"]
[Result "0-1"]
[Round "03"]
[TimeControl "180+2"]
[Date "2022.12.20"]
[WhiteClock "0:00:02"]
[BlackClock "0:00:19"]

1. d4 {[%clk 0:03:00]}  f5 {[%clk 0:02:59]} 2. e4 {[%clk 0:02:57]}  fxe4 {[%clk 0:02:59]} 3. f3 {[%clk 0:02:57]}  d5 {[%clk 0:02:59]} 4. Nc3 {[%clk 0:02:57]}  Nf6 {[%clk 0:02:59]} 5. Bg5 {[%clk 0:02:55]}  Bf5 {[%clk 0:02:45]} 6. Nge2 {[%clk 0:02:51]}  exf3 {[%clk 0:02:42]} 7. Ng3 {[%clk 0:02:50]}  fxg2 {[%clk 0:02:40]} 8. Bxg2 {[%clk 0:02:50]}  Bg4 {[%clk 0:02:30]} 9. Qd3 {[%clk 0:02:46]}  c6 {[%clk 0:02:17]} 10. h3 {[%clk 0:02:37]}  Be6 {[%clk 0:02:16]} 11. O-O-O {[%clk 0:02:30]}  Na6 {[%clk 0:02:13]} 12. Rde1 {[%clk 0:02:28]}  Qd7 {[%clk 0:02:13]} 13. h4 {[%clk 0:02:01]}  Bg4 {[%clk 0:02:09]} 14. h5 {[%clk 0:01:46]}  O-O-O {[%clk 0:02:06]} 15. Rh4 {[%clk 0:01:45]}  Nc7 {[%clk 0:01:45]} 16. Na4 {[%clk 0:01:34]}  b6 {[%clk 0:01:38]} 17. Bf4 {[%clk 0:01:15]}  e6 {[%clk 0:01:14]} 18. Be5 {[%clk 0:00:51]}  Bf5 {[%clk 0:01:10]} 19. Nxf5 {[%clk 0:00:49]}  exf5 {[%clk 0:01:11]} 20. Bh3 {[%clk 0:00:49]}  Ng4 {[%clk 0:01:07]} 21. Qg3 {[%clk 0:00:29]}  Nxe5 {[%clk 0:00:53]} 22. Rxe5 {[%clk 0:00:27]}  Bd6 {[%clk 0:00:49]} 23. Qd3 {[%clk 0:00:10]}  Bxe5 {[%clk 0:00:45]} 24. Bxf5 {[%clk 0:00:10]}  Ne6 {[%clk 0:00:43]} 25. dxe5 {[%clk 0:00:10]}  Kb8 {[%clk 0:00:24]} 26. Qb3 {[%clk 0:00:02]}  Nc5 {[%clk 0:00:20]} 27. Nxc5 {[%clk 0:00:02]}  Qxf5 {[%clk 0:00:20]} 28. Na6+ {[%clk 0:00:02]}  Kb7 {[%clk 0:00:20]} 29. Nc5+ {[%clk 0:00:01]}  Ka8 {[%clk 0:00:21]} 30. Qa4 {[%clk 0:00:01]}  Qf1+ {[%clk 0:00:19]} 31. Kd2 {[%clk 0:00:02]}  Qf2+ {[%clk 0:00:19]} 0-1


[Site "https://www.chess.com"]

[Event "Titled Tuesday Blitz December 20 Early 2022"]
[White "FaustinoOro"]
[Black "SHIVACalypso"]
[WhiteElo "2633"]
[BlackElo "2418"]
[Result "1-0"]
[Round "03"]
[TimeControl "180+2"]
[Date "2022.12.20"]
[WhiteClock "0:00:05"]
[BlackClock "0:00:12"]

1. e4 {[%clk 0:03:00]}  e6 {[%clk 0:02:58]} 2. d4 {[%clk 0:03:00]}  d5 {[%clk 0:02:58]} 3. Nd2 {[%clk 0:03:00]}  f5 {[%clk 0:02:58]} 4. exf5 {[%clk 0:02:53]}  exf5 {[%clk 0:02:58]} 5. Ngf3 {[%clk 0:02:53]}  Nf6 {[%clk 0:02:55]} 6. Bd3 {[%clk 0:02:50]}  Bd6 {[%clk 0:02:54]} 7. O-O {[%clk 0:02:49]}  O-O {[%clk 0:02:55]} 8. Ne5 {[%clk 0:02:44]}  c5 {[%clk 0:02:46]} 9. c3 {[%clk 0:02:38]}  Nc6 {[%clk 0:02:39]} 10. Ndf3 {[%clk 0:02:34]}  Qc7 {[%clk 0:02:20]} 11. Re1 {[%clk 0:02:20]}  Ne4 {[%clk 0:02:12]} 12. Bf4 {[%clk 0:02:09]}  c4 {[%clk 0:02:03]} 13. Bf1 {[%clk 0:02:00]}  h6 {[%clk 0:02:00]} 14. h4 {[%clk 0:01:53]}  Be6 {[%clk 0:01:55]} 15. Qc2 {[%clk 0:01:47]}  Bf7 {[%clk 0:01:53]} 16. Bh2 {[%clk 0:01:38]}  Bh5 {[%clk 0:01:48]} 17. b3 {[%clk 0:01:31]}  Bxf3 {[%clk 0:01:35]} 18. Nxf3 {[%clk 0:01:30]}  cxb3 {[%clk 0:01:10]} 19. Qxb3 {[%clk 0:01:26]}  Bxh2+ {[%clk 0:01:09]} 20. Nxh2 {[%clk 0:01:26]}  Qd6 {[%clk 0:01:05]} 21. Rad1 {[%clk 0:01:17]}  Nxf2 {[%clk 0:01:02]} 22. Kxf2 {[%clk 0:01:02]}  Qxh2 {[%clk 0:01:02]} 23. Qxd5+ {[%clk 0:01:02]}  Kh7 {[%clk 0:01:02]} 24. Qf3 {[%clk 0:00:55]}  Qxh4+ {[%clk 0:01:01]} 25. Kg1 {[%clk 0:00:54]}  f4 {[%clk 0:00:50]} 26. Bd3+ {[%clk 0:00:53]}  g6 {[%clk 0:00:42]} 27. Re6 {[%clk 0:00:43]}  Ne7 {[%clk 0:00:38]} 28. Qxb7 {[%clk 0:00:37]}  Rae8 {[%clk 0:00:36]} 29. Bxg6+ {[%clk 0:00:37]}  Kh8 {[%clk 0:00:34]} 30. Bxe8 {[%clk 0:00:36]}  f3 {[%clk 0:00:32]} 31. Qxe7 {[%clk 0:00:04]}  f2+ {[%clk 0:00:17]} 32. Kf1 {[%clk 0:00:04]}  Qh1+ {[%clk 0:00:18]} 33. Ke2 {[%clk 0:00:05]}  f1=Q+ {[%clk 0:00:16]} 34. Rxf1 {[%clk 0:00:04]}  Qxf1+ {[%clk 0:00:17]} 35. Kd2 {[%clk 0:00:05]}  Rf2+ {[%clk 0:00:17]} 36. Re2 {[%clk 0:00:05]}  Rxe2+ {[%clk 0:00:11]} 37. Qxe2 {[%clk 0:00:06]}  Qf3 {[%clk 0:00:12]} 38. Qxf3 {[%clk 0:00:05]} 1-0


[Site "https://www.chess.com"]

[Event "Titled Tuesday Blitz December 20 Early 2022"]
[White "Formento, Paolo"]
[Black "Mac Intyre, Paul"]
[WhiteFideId "861162"]
[BlackFideId "2014505"]
[WhiteElo "2327"]
[BlackElo "2246"]
[Result "0-1"]
[Round "03"]
[TimeControl "180+2"]
[Date "2022.12.20"]
[WhiteClock "0:00:13"]
[BlackClock "0:00:10"]

1. e4 {[%clk 0:02:56]}  g6 {[%clk 0:02:59]} 2. d4 {[%clk 0:02:56]}  Bg7 {[%clk 0:03:00]} 3. Nc3 {[%clk 0:02:56]}  c6 {[%clk 0:03:00]} 4. f4 {[%clk 0:02:52]}  d5 {[%clk 0:03:00]} 5. e5 {[%clk 0:02:53]}  f6 {[%clk 0:02:58]} 6. Nf3 {[%clk 0:02:53]}  Nh6 {[%clk 0:02:58]} 7. Be2 {[%clk 0:02:48]}  O-O {[%clk 0:02:47]} 8. O-O {[%clk 0:02:48]}  Nf7 {[%clk 0:02:44]} 9. Be3 {[%clk 0:02:45]}  b6 {[%clk 0:02:44]} 10. Qd2 {[%clk 0:02:43]}  Na6 {[%clk 0:02:44]} 11. Rad1 {[%clk 0:02:42]}  Nc7 {[%clk 0:02:44]} 12. exf6 {[%clk 0:02:37]}  exf6 {[%clk 0:02:44]} 13. Bf2 {[%clk 0:02:37]}  Nd6 {[%clk 0:02:44]} 14. Bd3 {[%clk 0:02:34]}  Bf5 {[%clk 0:02:43]} 15. Rde1 {[%clk 0:02:33]}  Qd7 {[%clk 0:02:43]} 16. Re2 {[%clk 0:02:26]}  Rae8 {[%clk 0:02:41]} 17. Rfe1 {[%clk 0:02:26]}  Bh6 {[%clk 0:02:29]} 18. g3 {[%clk 0:02:17]}  Bg4 {[%clk 0:02:28]} 19. Rxe8 {[%clk 0:02:15]}  Rxe8 {[%clk 0:02:28]} 20. Rxe8+ {[%clk 0:02:14]}  Qxe8 {[%clk 0:02:28]} 21. Ne1 {[%clk 0:02:15]}  g5 {[%clk 0:02:18]} 22. Be2 {[%clk 0:02:05]}  Bxe2 {[%clk 0:02:13]} 23. Nxe2 {[%clk 0:02:06]}  g4 {[%clk 0:02:00]} 24. Ng2 {[%clk 0:02:00]}  Nc4 {[%clk 0:01:38]} 25. Qe1 {[%clk 0:01:48]}  Qe4 {[%clk 0:01:20]} 26. b3 {[%clk 0:01:42]}  Nd6 {[%clk 0:01:17]} 27. Ne3 {[%clk 0:01:39]}  f5 {[%clk 0:01:17]} 28. Qd2 {[%clk 0:01:32]}  Bg7 {[%clk 0:01:08]} 29. Nd1 {[%clk 0:01:06]}  Kf7 {[%clk 0:00:47]} 30. Nec3 {[%clk 0:01:06]}  Qf3 {[%clk 0:00:44]} 31. Ne3 {[%clk 0:01:01]}  Ne4 {[%clk 0:00:41]} 32. Nxe4 {[%clk 0:00:57]}  Qxe4 {[%clk 0:00:39]} 33. c3 {[%clk 0:00:51]}  Nb5 {[%clk 0:00:39]} 34. a4 {[%clk 0:00:49]}  Nd6 {[%clk 0:00:39]} 35. Kf1 {[%clk 0:00:44]}  Qb1+ {[%clk 0:00:38]} 36. Kg2 {[%clk 0:00:40]}  Qxb3 {[%clk 0:00:37]} 37. Qd3 {[%clk 0:00:41]}  Kg6 {[%clk 0:00:33]} 38. Nxg4 {[%clk 0:00:40]}  Ne4 {[%clk 0:00:31]} 39. Ne3 {[%clk 0:00:35]}  Qxc3 {[%clk 0:00:28]} 40. Qa6 {[%clk 0:00:32]}  Qd2 {[%clk 0:00:26]} 41. Qc8 {[%clk 0:00:18]}  Qxf2+ {[%clk 0:00:25]} 42. Kh3 {[%clk 0:00:18]}  Qxe3 {[%clk 0:00:18]} 43. Qe6+ {[%clk 0:00:16]}  Bf6 {[%clk 0:00:17]} 44. Qg8+ {[%clk 0:00:16]}  Kh6 {[%clk 0:00:16]} 45. Qf8+ {[%clk 0:00:13]}  Bg7 {[%clk 0:00:15]} 46. Qxf5 {[%clk 0:00:13]}  Nf2+ {[%clk 0:00:11]} 47. Kh4 {[%clk 0:00:13]}  Qe7+ {[%clk 0:00:10]} 48. Qg5+ {[%clk 0:00:13]}  Qxg5+ {[%clk 0:00:10]} 49. fxg5+ {[%clk 0:00:14]}  Kg6 {[%clk 0:00:11]} 50. g4 {[%clk 0:00:12]}  Bxd4 {[%clk 0:00:10]} 51. a5 {[%clk 0:00:13]}  bxa5 {[%clk 0:00:10]} 0-1


[Site "https://www.chess.com"]

[Event "Titled Tuesday Blitz December 20 Early 2022"]
[White "GP9isback23"]
[Black "The_filthy"]
[WhiteElo "2577"]
[BlackElo "2377"]
[Result "1-0"]
[Round "03"]
[TimeControl "180+2"]
[Date "2022.12.20"]
[WhiteClock "0:00:04"]
[BlackClock "0:00:05"]

1. d4 {[%clk 0:02:59]}  d5 {[%clk 0:02:59]} 2. Nf3 {[%clk 0:03:00]}  e6 {[%clk 0:02:59]} 3. c4 {[%clk 0:03:00]}  Nf6 {[%clk 0:03:00]} 4. Nc3 {[%clk 0:02:57]}  a6 {[%clk 0:03:00]} 5. cxd5 {[%clk 0:02:57]}  exd5 {[%clk 0:03:00]} 6. Bg5 {[%clk 0:02:58]}  Be7 {[%clk 0:03:00]} 7. e3 {[%clk 0:02:58]}  O-O {[%clk 0:03:01]} 8. Bd3 {[%clk 0:02:59]}  b6 {[%clk 0:02:59]} 9. Qc2 {[%clk 0:02:59]}  h6 {[%clk 0:02:59]} 10. Bh4 {[%clk 0:02:48]}  Bb7 {[%clk 0:03:00]} 11. O-O {[%clk 0:02:47]}  Nbd7 {[%clk 0:03:00]} 12. Rfd1 {[%clk 0:02:47]}  Re8 {[%clk 0:02:52]} 13. Rac1 {[%clk 0:02:46]}  c5 {[%clk 0:02:49]} 14. Bf5 {[%clk 0:02:34]}  c4 {[%clk 0:02:45]} 15. Ne5 {[%clk 0:02:28]}  b5 {[%clk 0:02:34]} 16. f4 {[%clk 0:01:45]}  Nf8 {[%clk 0:02:28]} 17. Re1 {[%clk 0:01:39]}  N6d7 {[%clk 0:01:40]} 18. Bxe7 {[%clk 0:01:28]}  Qxe7 {[%clk 0:01:37]} 19. Bg4 {[%clk 0:01:24]}  Nxe5 {[%clk 0:01:27]} 20. fxe5 {[%clk 0:01:20]}  f6 {[%clk 0:01:25]} 21. exf6 {[%clk 0:01:17]}  Qxf6 {[%clk 0:01:25]} 22. Bf3 {[%clk 0:01:18]}  Qg5 {[%clk 0:01:22]} 23. Qf2 {[%clk 0:01:12]}  Rad8 {[%clk 0:01:16]} 24. Nb1 {[%clk 0:00:50]}  Ng6 {[%clk 0:01:06]} 25. Nd2 {[%clk 0:00:49]}  b4 {[%clk 0:01:00]} 26. Nxc4 {[%clk 0:00:44]}  dxc4 {[%clk 0:00:42]} 27. Bxb7 {[%clk 0:00:42]}  Nh4 {[%clk 0:00:31]} 28. Rc2 {[%clk 0:00:25]}  Re7 {[%clk 0:00:26]} 29. Bxa6 {[%clk 0:00:20]}  Rf8 {[%clk 0:00:15]} 30. Bxc4+ {[%clk 0:00:20]}  Kh8 {[%clk 0:00:15]} 31. Qg3 {[%clk 0:00:20]}  Qf6 {[%clk 0:00:13]} 32. Rf2 {[%clk 0:00:17]}  Nf5 {[%clk 0:00:14]} 33. Qf3 {[%clk 0:00:14]}  Ree8 {[%clk 0:00:10]} 34. Bd3 {[%clk 0:00:11]}  g6 {[%clk 0:00:08]} 35. Bxf5 {[%clk 0:00:11]}  gxf5 {[%clk 0:00:08]} 36. Qf4 {[%clk 0:00:11]}  Qg6 {[%clk 0:00:08]} 37. Ref1 {[%clk 0:00:11]}  Re4 {[%clk 0:00:08]} 38. Qf3 {[%clk 0:00:11]}  Rg8 {[%clk 0:00:07]} 39. g3 {[%clk 0:00:11]}  f4 {[%clk 0:00:06]} 40. exf4 {[%clk 0:00:11]}  Qf5 {[%clk 0:00:06]} 41. Re2 {[%clk 0:00:11]}  Rge8 {[%clk 0:00:06]} 42. Rxe4 {[%clk 0:00:11]}  Rxe4 {[%clk 0:00:07]} 43. Kg2 {[%clk 0:00:11]}  Rxd4 {[%clk 0:00:07]} 44. Rf2 {[%clk 0:00:12]}  h5 {[%clk 0:00:07]} 45. Qa8+ {[%clk 0:00:12]}  Kh7 {[%clk 0:00:07]} 46. Qa7+ {[%clk 0:00:12]}  Rd7 {[%clk 0:00:07]} 47. Qe3 {[%clk 0:00:12]}  h4 {[%clk 0:00:07]} 48. gxh4 {[%clk 0:00:06]}  Rg7+ {[%clk 0:00:07]} 49. Kf1 {[%clk 0:00:03]}  Qb1+ {[%clk 0:00:06]} 50. Ke2 {[%clk 0:00:03]}  Qc2+ {[%clk 0:00:05]} 51. Kf3 {[%clk 0:00:04]}  Qd1+ {[%clk 0:00:05]} 52. Qe2 {[%clk 0:00:03]}  Qd5+ {[%clk 0:00:05]} 53. Qe4+ {[%clk 0:00:03]}  Qxe4+ {[%clk 0:00:05]} 54. Kxe4 {[%clk 0:00:04]} 1-0


[Site "https://www.chess.com"]

[Event "Titled Tuesday Blitz December 20 Early 2022"]
[White "Giorno, Sven"]
[Black "FMalexhdez"]
[WhiteFideId "20645082"]
[WhiteElo "2517"]
[BlackElo "2290"]
[Result "1/2-1/2"]
[Round "03"]
[TimeControl "180+2"]
[Date "2022.12.20"]
[WhiteClock "0:00:18"]
[BlackClock "0:00:05"]

1. Nf3 {[%clk 0:03:00]}  c5 {[%clk 0:02:29]} 2. e4 {[%clk 0:02:59]}  d6 {[%clk 0:02:27]} 3. c3 {[%clk 0:02:54]}  Nf6 {[%clk 0:02:27]} 4. Be2 {[%clk 0:02:53]}  g6 {[%clk 0:02:26]} 5. O-O {[%clk 0:02:52]}  Bg7 {[%clk 0:02:27]} 6. Re1 {[%clk 0:02:52]}  O-O {[%clk 0:02:27]} 7. Bf1 {[%clk 0:02:51]}  e5 {[%clk 0:02:25]} 8. d4 {[%clk 0:02:49]}  Nc6 {[%clk 0:02:23]} 9. dxc5 {[%clk 0:02:41]}  dxc5 {[%clk 0:02:23]} 10. Qc2 {[%clk 0:02:38]}  b6 {[%clk 0:02:17]} 11. Bg5 {[%clk 0:02:34]}  h6 {[%clk 0:02:17]} 12. Bxf6 {[%clk 0:02:34]}  Qxf6 {[%clk 0:02:14]} 13. Na3 {[%clk 0:02:29]}  Bg4 {[%clk 0:02:12]} 14. Be2 {[%clk 0:02:26]}  Rfd8 {[%clk 0:02:11]} 15. Nc4 {[%clk 0:02:26]}  Qe6 {[%clk 0:02:02]} 16. Ne3 {[%clk 0:02:26]}  h5 {[%clk 0:02:00]} 17. Bc4 {[%clk 0:02:24]}  Qe7 {[%clk 0:01:58]} 18. Nd5 {[%clk 0:02:23]}  Qb7 {[%clk 0:01:46]} 19. Qd3 {[%clk 0:02:10]}  Na5 {[%clk 0:01:39]} 20. Ba6 {[%clk 0:02:07]}  Qd7 {[%clk 0:01:33]} 21. Rad1 {[%clk 0:02:00]}  c4 {[%clk 0:01:31]} 22. Qe3 {[%clk 0:01:50]}  Bxf3 {[%clk 0:01:14]} 23. Nf6+ {[%clk 0:01:47]}  Bxf6 {[%clk 0:01:14]} 24. Rxd7 {[%clk 0:01:46]}  Rxd7 {[%clk 0:01:14]} 25. Qxf3 {[%clk 0:01:47]}  Kg7 {[%clk 0:01:14]} 26. Rd1 {[%clk 0:01:40]}  Rad8 {[%clk 0:01:13]} 27. Rxd7 {[%clk 0:01:40]}  Rxd7 {[%clk 0:01:13]} 28. g3 {[%clk 0:01:20]}  Rd2 {[%clk 0:01:10]} 29. b4 {[%clk 0:01:19]}  cxb3 {[%clk 0:01:04]} 30. axb3 {[%clk 0:01:19]}  Nxb3 {[%clk 0:01:04]} 31. Bc4 {[%clk 0:01:17]}  Nc5 {[%clk 0:01:01]} 32. Qe3 {[%clk 0:01:01]}  Rd7 {[%clk 0:00:52]} 33. Bd5 {[%clk 0:00:59]}  a5 {[%clk 0:00:51]} 34. c4 {[%clk 0:00:56]}  a4 {[%clk 0:00:47]} 35. Qa3 {[%clk 0:00:56]}  Ra7 {[%clk 0:00:45]} 36. h4 {[%clk 0:00:54]}  Be7 {[%clk 0:00:43]} 37. Qa2 {[%clk 0:00:48]}  a3 {[%clk 0:00:41]} 38. Kg2 {[%clk 0:00:49]}  Nd3 {[%clk 0:00:34]} 39. c5 {[%clk 0:00:49]}  Bxc5 {[%clk 0:00:31]} 40. Qb1 {[%clk 0:00:42]}  Nb4 {[%clk 0:00:29]} 41. Ba2 {[%clk 0:00:33]}  Nxa2 {[%clk 0:00:27]} 42. Qxa2 {[%clk 0:00:34]}  b5 {[%clk 0:00:22]} 43. f4 {[%clk 0:00:31]}  b4 {[%clk 0:00:14]} 44. Qd5 {[%clk 0:00:27]}  a2 {[%clk 0:00:13]} 45. Qxe5+ {[%clk 0:00:23]}  f6 {[%clk 0:00:12]} 46. Qxc5 {[%clk 0:00:23]}  a1=Q {[%clk 0:00:12]} 47. Qxb4 {[%clk 0:00:17]}  Ra2+ {[%clk 0:00:11]} 48. Kf3 {[%clk 0:00:17]}  Qf1+ {[%clk 0:00:08]} 49. Ke3 {[%clk 0:00:18]}  Qe2+ {[%clk 0:00:07]} 50. Kd4 {[%clk 0:00:18]}  Rd2+ {[%clk 0:00:07]} 51. Kc5 {[%clk 0:00:18]}  Qe3+ {[%clk 0:00:06]} 52. Kc6 {[%clk 0:00:18]}  Qd3 {[%clk 0:00:03]} 53. Qe7+ {[%clk 0:00:17]}  Kg8 {[%clk 0:00:03]} 54. Qe8+ {[%clk 0:00:17]}  Kh7 {[%clk 0:00:03]} 55. Qf7+ {[%clk 0:00:17]}  Kh6 {[%clk 0:00:04]} 56. Qf8+ {[%clk 0:00:17]}  Kh7 {[%clk 0:00:04]} 57. Qf7+ {[%clk 0:00:18]}  Kh6 {[%clk 0:00:04]} 58. Qf8+ {[%clk 0:00:18]}  Kh7 {[%clk 0:00:05]} 59. Qf7+ {[%clk 0:00:18]} 1/2-1/2


[Site "https://www.chess.com"]